[Event "Titled Tuesday Blitz March 08 Early 2022"]
[White "Chigaev, Maksim"]
[Black "Talibov, Shiroghlan"]
[WhiteFideId "4108116"]
[BlackFideId "13429078"]
[WhiteElo "2502"]
[BlackElo "2070"]
[Result "1-0"]
[Round "09"]
[TimeControl "180+1"]
[Date "2022.03.08"]
[WhiteClock "0:00:08"]
[BlackClock "0:00:01"]

1. d4 {[%clk 0:03:00]}  d5 {[%clk 0:02:54]} 2. c4 {[%clk 0:03:00]}  e6 {[%clk 0:02:41]} 3. Nf3 {[%clk 0:02:59]}  c6 {[%clk 0:02:39]} 4. Qc2 {[%clk 0:02:47]}  f5 {[%clk 0:02:37]} 5. Bf4 {[%clk 0:02:46]}  Nf6 {[%clk 0:02:37]} 6. e3 {[%clk 0:02:45]}  Bd6 {[%clk 0:02:36]} 7. c5 {[%clk 0:02:43]}  Bxf4 {[%clk 0:02:34]} 8. exf4 {[%clk 0:02:44]}  O-O {[%clk 0:02:33]} 9. Bd3 {[%clk 0:02:44]}  Ne4 {[%clk 0:02:34]} 10. O-O {[%clk 0:02:44]}  Nd7 {[%clk 0:02:33]} 11. Nc3 {[%clk 0:02:41]}  b6 {[%clk 0:02:22]} 12. b4 {[%clk 0:02:39]}  Qf6 {[%clk 0:02:22]} 13. Rac1 {[%clk 0:02:01]}  a5 {[%clk 0:02:18]} 14. b5 {[%clk 0:01:52]}  cxb5 {[%clk 0:01:42]} 15. c6 {[%clk 0:01:47]}  Nb8 {[%clk 0:01:41]} 16. Nxb5 {[%clk 0:01:40]}  Na6 {[%clk 0:01:39]} 17. a3 {[%clk 0:01:39]}  Qe7 {[%clk 0:01:31]} 18. Ne5 {[%clk 0:01:27]}  Nc7 {[%clk 0:01:30]} 19. Qb2 {[%clk 0:01:13]}  Ba6 {[%clk 0:01:18]} 20. Nxc7 {[%clk 0:01:06]}  Qxc7 {[%clk 0:01:18]} 21. Bxa6 {[%clk 0:01:02]}  Rxa6 {[%clk 0:01:18]} 22. f3 {[%clk 0:01:02]}  Nd6 {[%clk 0:01:18]} 23. a4 {[%clk 0:01:00]}  b5 {[%clk 0:01:06]} 24. Nd7 {[%clk 0:00:57]}  Nc4 {[%clk 0:01:00]} 25. Qxb5 {[%clk 0:00:48]}  Rfa8 {[%clk 0:01:00]} 26. Ne5 {[%clk 0:00:43]}  Rb6 {[%clk 0:00:43]} 27. Qc5 {[%clk 0:00:43]}  Nxe5 {[%clk 0:00:41]} 28. fxe5 {[%clk 0:00:43]}  Rc8 {[%clk 0:00:32]} 29. Qxa5 {[%clk 0:00:43]}  Rxc6 {[%clk 0:00:32]} 30. Qxc7 {[%clk 0:00:42]}  R8xc7 {[%clk 0:00:31]} 31. Rxc6 {[%clk 0:00:42]}  Rxc6 {[%clk 0:00:32]} 32. Ra1 {[%clk 0:00:42]}  Kf7 {[%clk 0:00:31]} 33. a5 {[%clk 0:00:41]}  Ra6 {[%clk 0:00:31]} 34. Kf2 {[%clk 0:00:38]}  Ke7 {[%clk 0:00:31]} 35. Ke3 {[%clk 0:00:38]}  Kd7 {[%clk 0:00:31]} 36. Kf4 {[%clk 0:00:38]}  Kc6 {[%clk 0:00:28]} 37. g4 {[%clk 0:00:34]}  fxg4 {[%clk 0:00:26]} 38. Kxg4 {[%clk 0:00:34]}  Kb5 {[%clk 0:00:26]} 39. f4 {[%clk 0:00:34]}  g6 {[%clk 0:00:23]} 40. Rc1 {[%clk 0:00:16]}  h6 {[%clk 0:00:16]} 41. h4 {[%clk 0:00:14]}  Ra7 {[%clk 0:00:15]} 42. Rc5+ {[%clk 0:00:13]}  Kb4 {[%clk 0:00:15]} 43. h5 {[%clk 0:00:14]}  gxh5+ {[%clk 0:00:15]} 44. Kxh5 {[%clk 0:00:14]}  Rf7 {[%clk 0:00:15]} 45. a6 {[%clk 0:00:14]}  Rxf4 {[%clk 0:00:13]} 46. a7 {[%clk 0:00:14]}  Rf8 {[%clk 0:00:13]} 47. Kxh6 {[%clk 0:00:15]}  Ra8 {[%clk 0:00:11]} 48. Rc7 {[%clk 0:00:15]}  Kb5 {[%clk 0:00:12]} 49. Kg6 {[%clk 0:00:15]}  Kb6 {[%clk 0:00:12]} 50. Re7 {[%clk 0:00:15]}  Kb5 {[%clk 0:00:12]} 51. Kf6 {[%clk 0:00:15]}  Kc4 {[%clk 0:00:12]} 52. Kxe6 {[%clk 0:00:15]}  Kxd4 {[%clk 0:00:12]} 53. Kf7 {[%clk 0:00:11]}  Kc5 {[%clk 0:00:08]} 54. Rd7 {[%clk 0:00:09]}  d4 {[%clk 0:00:02]} 55. e6 {[%clk 0:00:09]}  Rc8 {[%clk 0:00:01]} 56. e7 {[%clk 0:00:08]} 1-0


[Site "https://www.chess.com"]

[Event "Titled Tuesday Blitz March 08 Early 2022"]
[White "Costachi, Mihnea"]
[Black "Krysa, Leandro"]
[WhiteFideId "1217518"]
[BlackFideId "116807"]
[WhiteElo "2464"]
[BlackElo "2490"]
[Result "1-0"]
[Round "09"]
[TimeControl "180+1"]
[Date "2022.03.08"]
[WhiteClock "0:00:14"]
[BlackClock "0:00:02"]

1. d4 {[%clk 0:03:00]}  d5 {[%clk 0:03:00]} 2. Bf4 {[%clk 0:03:00]}  Nf6 {[%clk 0:02:57]} 3. e3 {[%clk 0:03:01]}  Bg4 {[%clk 0:02:56]} 4. Nf3 {[%clk 0:03:00]}  c5 {[%clk 0:02:55]} 5. h3 {[%clk 0:03:00]}  Bh5 {[%clk 0:02:53]} 6. c3 {[%clk 0:03:00]}  Nc6 {[%clk 0:02:46]} 7. Nbd2 {[%clk 0:02:58]}  cxd4 {[%clk 0:02:43]} 8. exd4 {[%clk 0:02:57]}  e6 {[%clk 0:02:43]} 9. Be2 {[%clk 0:02:52]}  Bd6 {[%clk 0:02:41]} 10. Be3 {[%clk 0:02:50]}  O-O {[%clk 0:02:39]} 11. O-O {[%clk 0:02:51]}  Rb8 {[%clk 0:02:39]} 12. Re1 {[%clk 0:02:44]}  b5 {[%clk 0:02:37]} 13. a3 {[%clk 0:02:42]}  a5 {[%clk 0:02:30]} 14. Nf1 {[%clk 0:02:41]}  b4 {[%clk 0:02:20]} 15. axb4 {[%clk 0:02:40]}  axb4 {[%clk 0:02:20]} 16. Ra6 {[%clk 0:02:40]}  Rb6 {[%clk 0:02:16]} 17. Qa4 {[%clk 0:02:39]}  bxc3 {[%clk 0:02:03]} 18. bxc3 {[%clk 0:02:37]}  Qc7 {[%clk 0:01:48]} 19. N1d2 {[%clk 0:02:26]}  h6 {[%clk 0:01:44]} 20. Rxb6 {[%clk 0:02:24]}  Qxb6 {[%clk 0:01:43]} 21. Rb1 {[%clk 0:02:24]}  Qc7 {[%clk 0:01:39]} 22. Qa6 {[%clk 0:02:25]}  Rb8 {[%clk 0:01:32]} 23. Rb5 {[%clk 0:02:25]}  Rxb5 {[%clk 0:01:26]} 24. Bxb5 {[%clk 0:02:23]}  Nb8 {[%clk 0:01:21]} 25. Qa1 {[%clk 0:02:23]}  Bg6 {[%clk 0:01:18]} 26. c4 {[%clk 0:02:08]}  dxc4 {[%clk 0:01:15]} 27. Nxc4 {[%clk 0:02:09]}  Nd5 {[%clk 0:01:11]} 28. Nxd6 {[%clk 0:02:04]}  Qxd6 {[%clk 0:01:11]} 29. Bd2 {[%clk 0:02:02]}  Kh7 {[%clk 0:01:08]} 30. Ne5 {[%clk 0:02:02]}  Nc7 {[%clk 0:00:55]} 31. Ba4 {[%clk 0:01:42]}  Nd5 {[%clk 0:00:31]} 32. Nxg6 {[%clk 0:01:33]}  fxg6 {[%clk 0:00:30]} 33. Bc2 {[%clk 0:01:26]}  Nc6 {[%clk 0:00:30]} 34. Qa6 {[%clk 0:01:17]}  Qc7 {[%clk 0:00:29]} 35. Qd3 {[%clk 0:01:03]}  Nce7 {[%clk 0:00:29]} 36. Qe4 {[%clk 0:01:03]}  Kh8 {[%clk 0:00:25]} 37. h4 {[%clk 0:00:58]}  Qd6 {[%clk 0:00:23]} 38. h5 {[%clk 0:00:51]}  Nf6 {[%clk 0:00:14]} 39. Qa8+ {[%clk 0:00:51]}  Kh7 {[%clk 0:00:14]} 40. hxg6+ {[%clk 0:00:50]}  Nxg6 {[%clk 0:00:14]} 41. Qa7 {[%clk 0:00:41]}  Ng4 {[%clk 0:00:11]} 42. g3 {[%clk 0:00:33]}  Qf8 {[%clk 0:00:11]} 43. Bf4 {[%clk 0:00:27]}  Nf6 {[%clk 0:00:06]} 44. Qa6 {[%clk 0:00:22]}  Qf7 {[%clk 0:00:04]} 45. Qd3 {[%clk 0:00:20]}  Nd5 {[%clk 0:00:04]} 46. Be5 {[%clk 0:00:21]}  Ne7 {[%clk 0:00:04]} 47. f4 {[%clk 0:00:20]}  Kg8 {[%clk 0:00:04]} 48. Bb3 {[%clk 0:00:17]}  Nf8 {[%clk 0:00:05]} 49. Qe4 {[%clk 0:00:16]}  Nf5 {[%clk 0:00:04]} 50. g4 {[%clk 0:00:15]}  Ne7 {[%clk 0:00:04]} 51. f5 {[%clk 0:00:15]}  Kh8 {[%clk 0:00:04]} 52. fxe6 {[%clk 0:00:14]}  Qe8 {[%clk 0:00:02]} 53. Qf4 {[%clk 0:00:14]}  Nfg6 {[%clk 0:00:02]} 54. Qxh6+ {[%clk 0:00:14]} 1-0


[Site "https://www.chess.com"]

[Event "Titled Tuesday Blitz March 08 Early 2022"]
[White "Derige Kane, Yan"]
[Black "Sahil, Tickoo"]
[WhiteFideId "20665431"]
[BlackFideId "5019710"]
[WhiteElo "2169"]
[BlackElo "2099"]
[Result "1-0"]
[Round "09"]
[TimeControl "180+1"]
[Date "2022.03.09"]
[WhiteClock "0:01:34"]
[BlackClock "0:00:11"]

1. Nf3 {[%clk 0:03:00]}  b6 {[%clk 0:02:58]} 2. g3 {[%clk 0:03:01]}  Bb7 {[%clk 0:02:58]} 3. Bg2 {[%clk 0:03:02]}  g6 {[%clk 0:02:59]} 4. O-O {[%clk 0:03:03]}  Bg7 {[%clk 0:02:59]} 5. d4 {[%clk 0:03:00]}  Nf6 {[%clk 0:02:57]} 6. b3 {[%clk 0:02:59]}  c5 {[%clk 0:02:56]} 7. Bb2 {[%clk 0:02:58]}  cxd4 {[%clk 0:02:55]} 8. Bxd4 {[%clk 0:02:59]}  O-O {[%clk 0:02:53]} 9. Nbd2 {[%clk 0:02:58]}  Nc6 {[%clk 0:02:53]} 10. Bb2 {[%clk 0:02:58]}  Rc8 {[%clk 0:02:52]} 11. c4 {[%clk 0:02:58]}  d6 {[%clk 0:02:52]} 12. a3 {[%clk 0:02:58]}  Re8 {[%clk 0:02:51]} 13. Ng5 {[%clk 0:02:56]}  Na5 {[%clk 0:02:44]} 14. Bxb7 {[%clk 0:02:53]}  Nxb7 {[%clk 0:02:30]} 15. Ndf3 {[%clk 0:02:54]}  Nc5 {[%clk 0:02:27]} 16. b4 {[%clk 0:02:54]}  Nce4 {[%clk 0:02:21]} 17. Nxe4 {[%clk 0:02:54]}  Nxe4 {[%clk 0:02:22]} 18. Bxg7 {[%clk 0:02:54]}  Kxg7 {[%clk 0:02:23]} 19. Qd4+ {[%clk 0:02:54]}  Nf6 {[%clk 0:02:23]} 20. Rfd1 {[%clk 0:02:55]}  Qc7 {[%clk 0:02:23]} 21. Rac1 {[%clk 0:02:54]}  Qc6 {[%clk 0:02:21]} 22. Qh4 {[%clk 0:02:42]}  Qe4 {[%clk 0:02:15]} 23. Qxe4 {[%clk 0:02:42]}  Nxe4 {[%clk 0:02:15]} 24. Nd4 {[%clk 0:02:42]}  a6 {[%clk 0:02:08]} 25. f3 {[%clk 0:02:42]}  Nf6 {[%clk 0:02:07]} 26. a4 {[%clk 0:02:42]}  Rc7 {[%clk 0:02:02]} 27. b5 {[%clk 0:02:42]}  a5 {[%clk 0:01:57]} 28. Nc6 {[%clk 0:02:39]}  Nd7 {[%clk 0:01:55]} 29. e4 {[%clk 0:02:33]}  Nc5 {[%clk 0:01:54]} 30. Ra1 {[%clk 0:02:34]}  Rd7 {[%clk 0:01:47]} 31. Kf2 {[%clk 0:02:30]}  f5 {[%clk 0:01:37]} 32. exf5 {[%clk 0:02:27]}  gxf5 {[%clk 0:01:38]} 33. Nd4 {[%clk 0:02:24]}  Kf6 {[%clk 0:01:34]} 34. Nc6 {[%clk 0:02:19]}  e6 {[%clk 0:01:18]} 35. Ra2 {[%clk 0:02:15]}  h5 {[%clk 0:01:12]} 36. Rad2 {[%clk 0:02:14]}  Nxa4 {[%clk 0:01:05]} 37. Rxd6 {[%clk 0:02:14]}  Rxd6 {[%clk 0:01:05]} 38. Rxd6 {[%clk 0:02:14]}  Nc5 {[%clk 0:00:57]} 39. Ke3 {[%clk 0:01:57]}  a4 {[%clk 0:00:54]} 40. Nb4 {[%clk 0:01:55]}  Rb8 {[%clk 0:00:49]} 41. Nd5+ {[%clk 0:01:51]}  Ke5 {[%clk 0:00:41]} 42. Rc6 {[%clk 0:01:44]}  f4+ {[%clk 0:00:21]} 43. gxf4+ {[%clk 0:01:41]}  Kf5 {[%clk 0:00:21]} 44. Nxb6 {[%clk 0:01:42]}  a3 {[%clk 0:00:19]} 45. Rxc5+ {[%clk 0:01:41]}  Kg6 {[%clk 0:00:14]} 46. Nd7 {[%clk 0:01:39]}  Ra8 {[%clk 0:00:13]} 47. Rg5+ {[%clk 0:01:34]}  Kh6 {[%clk 0:00:11]} 48. Rg1 {[%clk 0:01:35]}  a2 {[%clk 0:00:11]} 49. Ra1 {[%clk 0:01:34]} 1-0


[Site "https://www.chess.com"]

[Event "Titled Tuesday Blitz March 08 Early 2022"]
[White "Durarbayli, Vasif"]
[Black "Jary, Sergey"]
[WhiteFideId "13402935"]
[BlackFideId "14110350"]
[WhiteElo "2528"]
[BlackElo "2260"]
[Result "0-1"]
[Round "09"]
[TimeControl "180+1"]
[Date "2022.03.08"]
[WhiteClock "0:00:02"]
[BlackClock "0:00:08"]

1. d4 {[%clk 0:03:00]}  Nf6 {[%clk 0:02:59]} 2. c4 {[%clk 0:03:00]}  g6 {[%clk 0:03:00]} 3. Nf3 {[%clk 0:02:58]}  Bg7 {[%clk 0:02:59]} 4. g3 {[%clk 0:02:58]}  d6 {[%clk 0:02:59]} 5. Bg2 {[%clk 0:02:58]}  O-O {[%clk 0:03:00]} 6. O-O {[%clk 0:02:59]}  Nc6 {[%clk 0:02:57]} 7. Nc3 {[%clk 0:02:59]}  a6 {[%clk 0:02:44]} 8. d5 {[%clk 0:02:56]}  Na5 {[%clk 0:02:44]} 9. Nd2 {[%clk 0:02:56]}  c5 {[%clk 0:02:40]} 10. Qc2 {[%clk 0:02:55]}  Rb8 {[%clk 0:02:39]} 11. b3 {[%clk 0:02:54]}  e5 {[%clk 0:02:34]} 12. dxe6 {[%clk 0:02:53]}  fxe6 {[%clk 0:02:33]} 13. Bb2 {[%clk 0:02:44]}  b5 {[%clk 0:02:30]} 14. Nce4 {[%clk 0:02:28]}  Bb7 {[%clk 0:02:24]} 15. Nxf6+ {[%clk 0:02:16]}  Bxf6 {[%clk 0:02:24]} 16. Bxf6 {[%clk 0:02:14]}  Qxf6 {[%clk 0:02:18]} 17. Rad1 {[%clk 0:01:50]}  Bxg2 {[%clk 0:02:18]} 18. Kxg2 {[%clk 0:01:51]}  Qf5 {[%clk 0:02:10]} 19. Qc3 {[%clk 0:01:41]}  Nc6 {[%clk 0:02:07]} 20. Nf3 {[%clk 0:01:38]}  Rbd8 {[%clk 0:02:03]} 21. Qe3 {[%clk 0:01:31]}  e5 {[%clk 0:01:59]} 22. Rd5 {[%clk 0:01:19]}  Nd4 {[%clk 0:01:59]} 23. Nxd4 {[%clk 0:01:09]}  cxd4 {[%clk 0:01:55]} 24. Qd3 {[%clk 0:01:09]}  bxc4 {[%clk 0:01:52]} 25. bxc4 {[%clk 0:01:08]}  Qf7 {[%clk 0:01:48]} 26. Qe4 {[%clk 0:00:56]}  Qf5 {[%clk 0:01:44]} 27. Qxf5 {[%clk 0:00:50]}  gxf5 {[%clk 0:01:43]} 28. Rb1 {[%clk 0:00:49]}  Rc8 {[%clk 0:01:40]} 29. Rb6 {[%clk 0:00:19]}  Rxc4 {[%clk 0:01:35]} 30. Rbxd6 {[%clk 0:00:19]}  Re8 {[%clk 0:01:32]} 31. Rxa6 {[%clk 0:00:20]}  Rc2 {[%clk 0:01:28]} 32. Ra7 {[%clk 0:00:19]}  Rxe2 {[%clk 0:01:26]} 33. Rdd7 {[%clk 0:00:20]}  h5 {[%clk 0:01:19]} 34. Kf3 {[%clk 0:00:15]}  Rd2 {[%clk 0:01:14]} 35. Rg7+ {[%clk 0:00:15]}  Kh8 {[%clk 0:01:14]} 36. Rh7+ {[%clk 0:00:15]}  Kg8 {[%clk 0:01:13]} 37. Rxh5 {[%clk 0:00:10]}  e4+ {[%clk 0:01:10]} 38. Kf4 {[%clk 0:00:11]}  Rxf2+ {[%clk 0:01:07]} 39. Kg5 {[%clk 0:00:11]}  f4 {[%clk 0:01:00]} 40. g4 {[%clk 0:00:11]}  Rc2 {[%clk 0:00:50]} 41. Kxf4 {[%clk 0:00:06]}  e3 {[%clk 0:00:47]} 42. Rah7 {[%clk 0:00:04]}  Rf8+ {[%clk 0:00:41]} 43. Kg3 {[%clk 0:00:02]}  e2 {[%clk 0:00:39]} 44. Re7 {[%clk 0:00:02]}  Rf1 {[%clk 0:00:28]} 45. Rhe5 {[%clk 0:00:02]}  d3 {[%clk 0:00:23]} 46. g5 {[%clk 0:00:02]}  d2 {[%clk 0:00:19]} 47. Re8+ {[%clk 0:00:01]}  Kf7 {[%clk 0:00:19]} 48. R5e7+ {[%clk 0:00:01]}  Kg6 {[%clk 0:00:12]} 49. Rg8+ {[%clk 0:00:01]}  Kf5 {[%clk 0:00:12]} 50. Rf8+ {[%clk 0:00:02]}  Kg6 {[%clk 0:00:12]} 51. Rg8+ {[%clk 0:00:02]}  Kf5 {[%clk 0:00:09]} 52. Rf8+ {[%clk 0:00:02]}  Kxg5 {[%clk 0:00:08]} 53. Rg7+ {[%clk 0:00:02]}  Kh6 {[%clk 0:00:08]} 0-1


[Site "https://www.chess.com"]

[Event "Titled Tuesday Blitz March 08 Early 2022"]
[White "Dwilewicz, Katarzyna"]
[Black "Korkmaz, Necmettin"]
[WhiteFideId "1148486"]
[BlackFideId "6303285"]
[WhiteElo "1907"]
[BlackElo "2094"]
[Result "0-1"]
[Round "09"]
[TimeControl "180+1"]
[Date "2022.03.09"]
[WhiteClock "0:00:04"]
[BlackClock "0:00:33"]

1. e4 {[%clk 0:03:00]}  e5 {[%clk 0:02:57]} 2. Nf3 {[%clk 0:03:00]}  Nc6 {[%clk 0:02:57]} 3. Bb5 {[%clk 0:02:57]}  a6 {[%clk 0:02:56]} 4. Ba4 {[%clk 0:02:54]}  Nf6 {[%clk 0:02:56]} 5. d3 {[%clk 0:02:54]}  Bc5 {[%clk 0:02:50]} 6. c3 {[%clk 0:02:46]}  d6 {[%clk 0:02:46]} 7. O-O {[%clk 0:02:41]}  Bg4 {[%clk 0:02:44]} 8. d4 {[%clk 0:02:22]}  Ba7 {[%clk 0:02:20]} 9. d5 {[%clk 0:02:21]}  b5 {[%clk 0:02:20]} 10. Bc2 {[%clk 0:02:18]}  Ne7 {[%clk 0:02:17]} 11. Nbd2 {[%clk 0:02:16]}  Ng6 {[%clk 0:02:14]} 12. Re1 {[%clk 0:02:12]}  Nh4 {[%clk 0:02:13]} 13. h3 {[%clk 0:01:40]}  Nxf3+ {[%clk 0:02:08]} 14. Nxf3 {[%clk 0:01:40]}  Bh5 {[%clk 0:02:08]} 15. Be3 {[%clk 0:01:32]}  O-O {[%clk 0:02:04]} 16. Bxa7 {[%clk 0:01:20]}  Rxa7 {[%clk 0:02:04]} 17. Qd3 {[%clk 0:01:21]}  Nd7 {[%clk 0:02:03]} 18. b4 {[%clk 0:01:19]}  Bg6 {[%clk 0:01:52]} 19. a4 {[%clk 0:01:10]}  Rb7 {[%clk 0:01:52]} 20. axb5 {[%clk 0:01:08]}  axb5 {[%clk 0:01:53]} 21. Ra5 {[%clk 0:01:06]}  f5 {[%clk 0:01:51]} 22. Qe2 {[%clk 0:00:48]}  fxe4 {[%clk 0:01:45]} 23. Bxe4 {[%clk 0:00:49]}  Bxe4 {[%clk 0:01:33]} 24. Qxe4 {[%clk 0:00:50]}  Nf6 {[%clk 0:01:34]} 25. Qe2 {[%clk 0:00:46]}  Qd7 {[%clk 0:01:33]} 26. Rd1 {[%clk 0:00:40]}  h6 {[%clk 0:01:27]} 27. Ne1 {[%clk 0:00:26]}  Rfb8 {[%clk 0:01:21]} 28. Nc2 {[%clk 0:00:26]}  Qf7 {[%clk 0:01:21]} 29. Ne3 {[%clk 0:00:26]}  Ne4 {[%clk 0:01:18]} 30. Qc2 {[%clk 0:00:22]}  Qf4 {[%clk 0:01:17]} 31. Re1 {[%clk 0:00:14]}  Rf8 {[%clk 0:01:15]} 32. Ng4 {[%clk 0:00:12]}  Nf6 {[%clk 0:01:10]} 33. g3 {[%clk 0:00:11]}  Qg5 {[%clk 0:01:05]} 34. Nxf6+ {[%clk 0:00:10]}  Qxf6 {[%clk 0:01:06]} 35. Kg2 {[%clk 0:00:09]}  Qf3+ {[%clk 0:01:05]} 36. Kg1 {[%clk 0:00:09]}  Rf7 {[%clk 0:00:57]} 37. Qd2 {[%clk 0:00:07]}  Rb8 {[%clk 0:00:54]} 38. Ra2 {[%clk 0:00:06]}  Rbf8 {[%clk 0:00:53]} 39. Re3 {[%clk 0:00:06]}  Qh5 {[%clk 0:00:53]} 40. Kg2 {[%clk 0:00:06]}  Rf3 {[%clk 0:00:51]} 41. Qe2 {[%clk 0:00:06]}  e4 {[%clk 0:00:49]} 42. Rd2 {[%clk 0:00:04]}  Qf5 {[%clk 0:00:47]} 43. Kg1 {[%clk 0:00:03]}  Qxh3 {[%clk 0:00:45]} 44. Rxf3 {[%clk 0:00:03]}  exf3 {[%clk 0:00:45]} 45. Qe6+ {[%clk 0:00:03]}  Qxe6 {[%clk 0:00:44]} 46. dxe6 {[%clk 0:00:04]}  g5 {[%clk 0:00:42]} 47. Rd5 {[%clk 0:00:04]}  Re8 {[%clk 0:00:41]} 48. Rxb5 {[%clk 0:00:04]}  Rxe6 {[%clk 0:00:41]} 49. Rf5 {[%clk 0:00:02]}  g4 {[%clk 0:00:41]} 50. Rf4 {[%clk 0:00:02]}  h5 {[%clk 0:00:41]} 51. Rf5 {[%clk 0:00:02]}  Re1+ {[%clk 0:00:41]} 52. Kh2 {[%clk 0:00:03]}  Rf1 {[%clk 0:00:41]} 53. Rxh5 {[%clk 0:00:03]}  Rxf2+ {[%clk 0:00:41]} 54. Kh1 {[%clk 0:00:04]}  Rf1+ {[%clk 0:00:41]} 55. Kh2 {[%clk 0:00:04]}  Rc1 {[%clk 0:00:38]} 56. Rf5 {[%clk 0:00:03]}  Kh7 {[%clk 0:00:35]} 57. Rf4 {[%clk 0:00:03]}  Rc2+ {[%clk 0:00:34]} 58. Kh1 {[%clk 0:00:03]}  Rxc3 {[%clk 0:00:32]} 59. Rxg4 {[%clk 0:00:04]}  Rc1+ {[%clk 0:00:32]} 60. Kh2 {[%clk 0:00:04]}  f2 {[%clk 0:00:32]} 61. Rh4+ {[%clk 0:00:05]}  Kg6 {[%clk 0:00:32]} 62. Rg4+ {[%clk 0:00:05]}  Kh5 {[%clk 0:00:32]} 63. Rh4+ {[%clk 0:00:05]}  Kg5 {[%clk 0:00:33]} 64. Rf4 {[%clk 0:00:04]}  f1=Q {[%clk 0:00:33]} 0-1


[Site "https://www.chess.com"]

[Event "Titled Tuesday Blitz March 08 Early 2022"]
[White "Erigaisi Arjun"]
[Black "Tabatabaei, M. Amin"]
[WhiteFideId "35009192"]
[BlackFideId "12521213"]
[WhiteElo "2745"]
[BlackElo "2544"]
[Result "1-0"]
[Round "09"]
[TimeControl "180+1"]
[Date "2022.03.08"]
[WhiteClock "0:01:23"]
[BlackClock "0:01:19"]

1. d4 {[%clk 0:03:00]}  Nf6 {[%clk 0:02:58]} 2. Bg5 {[%clk 0:03:00]}  c5 {[%clk 0:02:56]} 3. d5 {[%clk 0:03:00]}  Ne4 {[%clk 0:02:56]} 4. Bf4 {[%clk 0:03:00]}  e6 {[%clk 0:02:56]} 5. f3 {[%clk 0:03:00]}  Bd6 {[%clk 0:02:56]} 6. Bxd6 {[%clk 0:02:59]}  Nxd6 {[%clk 0:02:57]} 7. Nc3 {[%clk 0:03:00]}  b5 {[%clk 0:02:56]} 8. e4 {[%clk 0:02:58]}  b4 {[%clk 0:02:49]} 9. Nb5 {[%clk 0:02:49]}  Nxb5 {[%clk 0:02:49]} 10. Bxb5 {[%clk 0:02:50]}  Qb6 {[%clk 0:02:50]} 11. Bc4 {[%clk 0:02:48]}  Ba6 {[%clk 0:02:50]} 12. Qd3 {[%clk 0:02:44]}  exd5 {[%clk 0:02:14]} 13. Qxd5 {[%clk 0:02:31]}  Bxc4 {[%clk 0:02:13]} 14. Qxc4 {[%clk 0:02:32]}  Nc6 {[%clk 0:02:11]} 15. Ne2 {[%clk 0:02:30]}  O-O {[%clk 0:02:09]} 16. O-O {[%clk 0:02:29]}  d5 {[%clk 0:01:56]} 17. exd5 {[%clk 0:02:24]}  Ne5 {[%clk 0:01:56]} 18. Qh4 {[%clk 0:02:20]}  Rad8 {[%clk 0:01:56]} 19. Rad1 {[%clk 0:02:19]}  c4+ {[%clk 0:01:49]} 20. Qf2 {[%clk 0:02:15]}  Qg6 {[%clk 0:01:47]} 21. Ng3 {[%clk 0:02:08]}  Rd7 {[%clk 0:01:42]} 22. Rfe1 {[%clk 0:02:07]}  f6 {[%clk 0:01:39]} 23. f4 {[%clk 0:02:05]}  Ng4 {[%clk 0:01:40]} 24. Qe2 {[%clk 0:02:05]}  h5 {[%clk 0:01:40]} 25. Qxc4 {[%clk 0:01:55]}  h4 {[%clk 0:01:38]} 26. Ne4 {[%clk 0:01:41]}  Kh7 {[%clk 0:01:37]} 27. Nc5 {[%clk 0:01:39]}  Rd6 {[%clk 0:01:27]} 28. Ne6 {[%clk 0:01:33]}  Rf7 {[%clk 0:01:27]} 29. Qe4 {[%clk 0:01:22]}  Qxe4 {[%clk 0:01:19]} 30. Rxe4 {[%clk 0:01:23]}  Rfd7 {[%clk 0:01:19]} 31. Nf8+ {[%clk 0:01:23]} 1-0


[Site "https://www.chess.com"]

[Event "Titled Tuesday Blitz March 08 Early 2022"]
[White "Gaehwiler, Gabriel"]
[Black "Kouskoutis, Georgios-Alexandros"]
[WhiteFideId "1314530"]
[BlackFideId "4234049"]
[WhiteElo "2383"]
[BlackElo "2130"]
[Result "1-0"]
[Round "09"]
[TimeControl "180+1"]
[Date "2022.03.09"]
[WhiteClock "0:01:31"]
[BlackClock "0:00:02"]

1. Nf3 {[%clk 0:03:00]}  d5 {[%clk 0:03:00]} 2. c4 {[%clk 0:03:00]}  d4 {[%clk 0:03:00]} 3. e3 {[%clk 0:03:00]}  Nc6 {[%clk 0:02:59]} 4. b4 {[%clk 0:03:01]}  dxe3 {[%clk 0:02:44]} 5. fxe3 {[%clk 0:03:01]}  Nxb4 {[%clk 0:02:43]} 6. d4 {[%clk 0:03:02]}  e5 {[%clk 0:02:06]} 7. Nc3 {[%clk 0:02:57]}  exd4 {[%clk 0:01:37]} 8. exd4 {[%clk 0:02:58]}  Bf5 {[%clk 0:01:38]} 9. Kf2 {[%clk 0:02:23]}  Nf6 {[%clk 0:01:27]} 10. a3 {[%clk 0:02:20]}  Nc2 {[%clk 0:00:50]} 11. Ra2 {[%clk 0:02:18]}  Ng4+ {[%clk 0:00:50]} 12. Kg1 {[%clk 0:02:14]}  c5 {[%clk 0:00:20]} 13. Rxc2 {[%clk 0:02:10]}  Bxc2 {[%clk 0:00:21]} 14. Qxc2 {[%clk 0:02:10]}  Be7 {[%clk 0:00:20]} 15. h3 {[%clk 0:02:07]}  Nf6 {[%clk 0:00:20]} 16. d5 {[%clk 0:02:07]}  O-O {[%clk 0:00:19]} 17. a4 {[%clk 0:02:02]}  a6 {[%clk 0:00:16]} 18. g4 {[%clk 0:02:02]}  Ne8 {[%clk 0:00:11]} 19. Bd3 {[%clk 0:01:53]}  g6 {[%clk 0:00:10]} 20. Kg2 {[%clk 0:01:54]}  Nd6 {[%clk 0:00:10]} 21. Bf4 {[%clk 0:01:54]}  Bf6 {[%clk 0:00:07]} 22. Rb1 {[%clk 0:01:53]}  b5 {[%clk 0:00:05]} 23. axb5 {[%clk 0:01:53]}  axb5 {[%clk 0:00:06]} 24. cxb5 {[%clk 0:01:45]}  c4 {[%clk 0:00:06]} 25. Bf1 {[%clk 0:01:42]}  Re8 {[%clk 0:00:05]} 26. b6 {[%clk 0:01:41]}  Rb8 {[%clk 0:00:05]} 27. Na4 {[%clk 0:01:38]}  Qd7 {[%clk 0:00:03]} 28. Nc5 {[%clk 0:01:33]}  Qe7 {[%clk 0:00:03]} 29. Re1 {[%clk 0:01:32]}  Qf8 {[%clk 0:00:02]} 30. Nd7 {[%clk 0:01:32]}  Rxe1 {[%clk 0:00:02]} 31. Nxf8 {[%clk 0:01:31]}  Re7 {[%clk 0:00:02]} 32. Bxd6 {[%clk 0:01:31]} 1-0


[Site "https://www.chess.com"]